fUSD/lending_fUSD_20240117
["ID","MTS","AMOUNT","RATE_DAILY","PERIOD"]
[311869306,1705480246968,-500.0,0.00021917,2]
[311869308,1705480246977,-500.0,0.00021917,2]
[311869310,1705480246986,-500.0,0.00021917,2]
[311869311,1705480246996,-543.97,0.00021917,2]
[311869313,1705480247007,-500.0,0.00021917,2]
[311869316,1705480247017,-500.0,0.00021917,2]
[311869317,1705480247029,-500.0,0.00021917,2]
[311869320,1705480247038,-500.0,0.00021917,2]
[311869322,1705480247047,-500.0,0.00021917,2]
[311869324,1705480247057,-1000.0,0.00021917,2]
[311869326,1705480247067,-972.8,0.00021917,2]
[311869328,1705480247076,-720.11,0.00021917,2]
[311869330,1705480247085,-500.0,0.00021917,2]
[311869332,1705480247095,-500.0,0.00021917,2]
[311869334,1705480247105,-500.0,0.00021917,2]
[311869336,1705480247114,-500.0,0.00021917,2]
[311869338,1705480247123,-500.0,0.00021917,2]
[311869340,1705480247133,-500.0,0.00021917,2]
[311869342,1705480247142,-500.0,0.00021917,2]
[311869344,1705480247151,-608.08,0.00021917,2]
[311869346,1705480247161,-590.03,0.00021917,2]
[311869348,1705480247171,-500.0,0.00021917,2]
[311869350,1705480247180,-500.0,0.00021917,2]
[311869351,1705480247189,-649.23,0.00021917,2]
[311869354,1705480247198,-500.0,0.00021917,2]
[311869356,1705480247208,-521.73,0.00021917,2]
[311869358,1705480247218,-679.44,0.00021917,2]
[311869360,1705480247228,-876.55,0.00021917,2]
[311869362,1705480247238,-500.0,0.00021917,2]
[311869364,1705480247247,-500.0,0.00021917,2]
[311869366,1705480247257,-500.0,0.00021917,2]
[311869368,1705480247267,-518.9,0.00021917,2]
[311869370,1705480247276,-500.0,0.00021917,2]
[311869371,1705480247285,-534.71,0.00021917,2]
[311869372,1705480247294,-500.0,0.00021917,2]
[311869373,1705480247303,-500.0,0.00021917,2]
[311869374,1705480247312,-500.0,0.00021917,2]
[311869375,1705480247321,-462.82100523,0.00021917,2]
[311869376,1705480247330,-724.02,0.00021917,2]
[311869378,1705480247339,-500.0,0.00021917,2]
[311869380,1705480247348,-500.0,0.00021917,2]
[311869382,1705480247358,-500.0,0.00021917,2]
[311869384,1705480247367,-619.96,0.00021917,2]
[311869386,1705480247375,-500.0,0.00021917,2]
[311869388,1705480247384,-500.0,0.00021917,2]
[311869390,1705480247393,-1000.0,0.00021917,2]
[311869392,1705480247402,-500.0,0.00021917,2]
[311869394,1705480247411,-854.3,0.00021917,2]
[311869396,1705480247420,-500.0,0.00021917,2]
[311869398,1705480247429,-707.57,0.00021917,2]
[311869400,1705480247438,-500.0,0.00021917,2]
[311869402,1705480247448,-500.0,0.00021917,2]
[311869404,1705480247457,-500.0,0.00021917,2]
[311869406,1705480247467,-500.0,0.00021917,2]
[311869408,1705480247476,-500.0,0.00021917,2]
[311869410,1705480247485,-500.0,0.00021917,2]
[311869412,1705480247494,-630.79714798,0.00021917,2]
[311869414,1705480247504,-500.0,0.00021917,2]
[311869416,1705480247514,-837.81,0.00021917,2]
[311869418,1705480247524,-709.66,0.00021917,2]
[311869420,1705480247532,-500.0,0.00021917,2]
[311869422,1705480247542,-840.19,0.00021917,2]
[311869424,1705480247551,-500.0,0.00021917,2]
[311869426,1705480247560,-899.22,0.00021917,2]
[311869428,1705480247569,-500.0,0.00021917,2]
[311869430,1705480247578,-500.0,0.00021917,2]
[311869432,1705480247588,-500.0,0.00021917,2]
[311869434,1705480247600,-500.0,0.00021917,2]
[311869436,1705480247611,-521.08,0.00021917,2]
[311869438,1705480247620,-1173.77,0.00021917,2]
[311869467,1705480247868,-500.0,0.00021917,2]
[311869469,1705480247878,-500.0,0.00021917,2]
[311869471,1705480247887,-500.0,0.00021917,2]
[311869473,1705480247896,-523.16,0.00021917,2]
[311869474,1705480247905,-500.0,0.00021917,2]
[311869476,1705480247915,-500.0,0.00021917,2]
[311869478,1705480247924,-500.0,0.00021917,2]
[311869480,1705480247933,-500.0,0.00021917,2]
[311869482,1705480247942,-500.0,0.00021917,2]
[311869484,1705480247951,-521.87,0.00021917,2]
[311869486,1705480247960,-1051.82,0.00021917,2]
[311869488,1705480247970,-500.0,0.00021917,2]
[311869490,1705480247979,-838.86,0.00021917,2]
[311869493,1705480247988,-500.0,0.00021917,2]
[311869494,1705480247997,-500.0,0.00021917,2]
[311869496,1705480248006,-500.0,0.00021917,2]
[311869498,1705480248015,-500.0,0.00021917,2]
[311869500,1705480248024,-735.45,0.00021917,2]
[311869503,1705480248034,-500.0,0.00021917,2]
[311869505,1705480248043,-500.0,0.00021917,2]
[311869507,1705480248052,-500.0,0.00021917,2]
[311869509,1705480248061,-526.19,0.00021917,2]
[311869511,1705480248070,-500.0,0.00021917,2]
[311869513,1705480248079,-719.15,0.00021917,2]
[311869515,1705480248088,-500.0,0.00021917,2]
[311869517,1705480248097,-500.0,0.00021917,2]
[311869519,1705480248106,-1328.99,0.00021917,2]
[311869521,1705480248115,-619.2011702,0.00021917,2]
[311869522,1705480248124,-500.0,0.00021917,2]
[311869525,1705480248134,-500.0,0.00021917,2]
[311869527,1705480248143,-500.0,0.00021917,2]
[311869529,1705480248152,-667.02,0.00021917,2]
[311869531,1705480248161,-860.05,0.00021917,2]
[311869533,1705480248170,-656.34,0.00021917,2]
[311869535,1705480248178,-508.49168808,0.00021917,2]
[311869537,1705480248188,-500.0,0.00021917,2]
[311869539,1705480248197,-500.0,0.00021917,2]
[311869541,1705480248206,-233.12635407,0.00021917,2]
[311869543,1705480248214,-500.0,0.00021917,2]
[311869545,1705480248225,-673.66,0.00021917,2]
[311869547,1705480248234,-1004.12,0.00021917,2]
[311869549,1705480248243,-1357.39,0.00021917,2]
[311869551,1705480248251,-500.0,0.00021917,2]
[311869552,1705480248260,-500.0,0.00021917,2]
[311869555,1705480248270,-500.0,0.00021917,2]
[311869557,1705480248279,-500.0,0.00021917,2]
[311869559,1705480248288,-500.0,0.00021917,2]
[311869561,1705480248297,-500.0,0.00021917,2]
[311869562,1705480248306,-949.4,0.00021917,2]
[311869565,1705480248316,-500.0,0.00021917,2]
[311869567,1705480248327,-500.0,0.00021917,2]
[311869568,1705480248335,-300.0,0.00021917,2]
[311869569,1705480248344,-500.0,0.00021917,2]
[311869570,1705480248353,-617.91,0.00021917,2]
[311869571,1705480248362,-625.48,0.00021917,2]
[311869572,1705480248370,-708.27,0.00021917,2]
[311869573,1705480248379,-500.0,0.00021917,2]
[311869575,1705480248388,-797.43,0.00021917,2]
[311869577,1705480248397,-500.0,0.00021917,2]
[311869579,1705480248406,-500.0,0.00021917,2]
[311869581,1705480248415,-500.0,0.00021917,2]
[311869583,1705480248424,-869.49,0.00021917,2]
[311869585,1705480248434,-500.0,0.00021917,2]
[311869587,1705480248443,-1766.99,0.00021917,2]
[311869589,1705480248451,-873.62,0.00021917,2]
[311869591,1705480248461,-697.84,0.00021917,2]
[311869593,1705480248471,-510.4629262,0.00021917,2]
[311869595,1705480248480,-500.0,0.00021917,2]
[311869597,1705480248489,-530.85,0.00021917,2]
[311869599,1705480248498,-500.0,0.00021917,2]
[311869601,1705480248506,-500.0,0.00021917,2]
[311869603,1705480248518,-866.17,0.00021917,2]
[311869604,1705480248527,-500.0,0.00021917,2]
[311869607,1705480248536,-950.98,0.00021917,2]
[311869609,1705480248545,-1041.73,0.00021917,2]
[311869610,1705480248554,-500.0,0.00021917,2]
[311869613,1705480248564,-500.0,0.00021917,2]
[311869614,1705480248573,-1888.69,0.00021917,2]
[311869616,1705480248581,-579.04,0.00021917,2]
[311869618,1705480248591,-1007.25,0.00021917,2]
[311869620,1705480248600,-500.0,0.00021917,2]
[311869622,1705480248610,-563.94673634,0.00021917,2]
[311869624,1705480248620,-772.16,0.00021917,2]
[311869627,1705480248629,-1004.99,0.00021917,2]
[311869628,1705480248638,-500.0,0.00021917,2]
[311869630,1705480248647,-500.0,0.00021917,2]
[311869633,1705480248657,-500.0,0.00021917,2]
[311869634,1705480248666,-500.0,0.00021917,2]
[311869636,1705480248675,-500.0,0.00021917,2]
[311869638,1705480248684,-598.54662155,0.00021917,2]
[311869641,1705480248694,-521.88,0.00021917,2]
[311869643,1705480248703,-500.0,0.00021917,2]
[311869645,1705480248712,-500.0,0.00021917,2]
[311869647,1705480248722,-1627.5,0.00021917,2]
[311869649,1705480248731,-500.0,0.00021917,2]
[311869651,1705480248740,-500.0,0.00021917,2]
[311869653,1705480248748,-651.28,0.00021917,2]
[311869655,1705480248757,-500.0,0.00021917,2]
[311869656,1705480248766,-500.0,0.00021917,2]
[311869659,1705480248775,-520.92,0.00021917,2]
[311869660,1705480248785,-500.0,0.00021917,2]
[311869663,1705480248794,-669.66,0.00021917,2]
[311869665,1705480248804,-554.81,0.00021917,2]
[311869667,1705480248813,-500.0,0.00021917,2]
[311869668,1705480248822,-500.0,0.00021917,2]
[311869671,1705480248831,-872.87,0.00021917,2]
[311869672,1705480248840,-500.0,0.00021917,2]
[311869674,1705480248850,-682.02,0.00021917,2]
[311869676,1705480248859,-1138.31,0.00021917,2]
[311869678,1705480248868,-500.0,0.00021917,2]
[311869680,1705480248877,-500.0,0.00021917,2]
[311869682,1705480248886,-500.0,0.00021917,2]
[311869684,1705480248895,-500.0,0.00021917,2]
[311869686,1705480248905,-1457.88,0.00021917,2]
[311869688,1705480248914,-507.38,0.00021917,2]
[311869690,1705480248923,-500.0,0.00021917,2]
[311869693,1705480248932,-885.03,0.00021917,2]
[311869695,1705480248941,-784.56,0.00021917,2]
[311869697,1705480248951,-1167.89,0.00021917,2]
[311869699,1705480248960,-500.0,0.00021917,2]
[311869701,1705480248970,-500.0,0.00021917,2]
[311869702,1705480248978,-731.11,0.00021917,2]
[311869705,1705480248988,-688.51,0.00021917,2]
[311869707,1705480248997,-547.64,0.00021917,2]
[311869709,1705480249006,-500.0,0.00021917,2]
[311869710,1705480249015,-500.0,0.00021917,2]
[311869712,1705480249024,-500.0,0.00021917,2]
[311869714,1705480249033,-929.05,0.00021917,2]
[311869717,1705480249042,-1194.84,0.00021917,2]
[311869718,1705480249051,-837.36,0.00021917,2]
[311869721,1705480249061,-500.0,0.00021917,2]
[311869722,1705480249069,-500.0,0.00021917,2]
[311869725,1705480249079,-944.97,0.00021917,2]
[311869727,1705480249088,-100.34679594,0.00021917,2]
[311869735,1705480249158,-1288.66320406,0.00021917,2]
[311869737,1705480249167,-500.0,0.00021917,2]
[311869739,1705480249176,-287.85722183,0.00021917,2]
[311869742,1705480249187,-556.32277817,0.00021917,2]
[311869744,1705480249196,-663.08,0.00021917,2]
[311869746,1705480249205,-770.93,0.00021917,2]
[311869748,1705480249214,-146.71722183,0.00021917,2]
[311869750,1705480249226,-383.67277817,0.00021917,2]
[311869752,1705480249235,-927.64478339,0.00021917,2]
[311869806,1705480252674,201.8,0.00019283,2]
[311869807,1705480316315,1000.0,0.0002,2]
[311869808,1705480317169,1000.0,0.00019,2]
[311869809,1705480317344,1000.0,0.00018,2]
[311869810,1705480317731,1000.0,0.00017,2]
[311869811,1705480317813,1000.0,0.00016,2]
[311869812,1705480318188,1000.0,0.00015,2]
[311869813,1705480318467,1000.0,0.00014,2]
[311869814,1705480318810,1000.0,0.00013,2]
[311869815,1705480319138,1000.0,0.00012,2]
[311869816,1705480319503,1000.0,0.00011,2]
[311869817,1705480319773,1000.0,0.0001,2]
[311869818,1705480320088,1000.0,9e-05,2]
[311869819,1705480320488,1000.0,8e-05,2]
[311869820,1705480320859,1000.0,7e-05,2]
[311869821,1705480321205,1000.0,6e-05,2]
[311869822,1705480321573,1000.0,5e-05,2]
[311869823,1705480321897,1000.0,4e-05,2]
[311869824,1705480322158,1000.0,3e-05,2]
[311869825,1705480322522,1288.959286,2e-05,2]
[311869827,1705480533897,150.0,0.0002,2]
[311869828,1705480537141,-500.0,0.00035551,120]
[311869829,1705480537165,-1000.0,0.00035551,60]
[311869830,1705480537189,-912.26674943,0.00035551,120]
[311869831,1705480537212,-840.09049291,0.00035551,30]
[311869832,1705480537238,-436890.90542932,0.00035551,30]
[311869833,1705480537261,-1240.47550254,0.00035551,120]
[311869834,1705480537285,-569.05023525,0.00035551,90]
[311869835,1705480537309,-2534.70033474,0.00035551,120]
[311869836,1705480537333,-299.68309344,0.00035551,30]
[311869837,1705480537355,-674.40485161,0.00035551,30]
[311869838,1705480537378,-151.68222645,0.00035551,120]
[311869839,1705480537400,-167.06046796,0.00035551,120]
[311869840,1705480537423,-1334.97594354,0.00035551,120]
[311869841,1705480537445,-303.44957867,0.00035551,120]
[311869842,1705480537469,-353.45057716,0.00035551,120]
[311869843,1705480537494,-377.40084509,0.00035551,30]
[311869844,1705480537515,-160.35232772,0.00035551,120]
[311869845,1705480537538,-519.1237228,0.00035551,30]
[311869846,1705480537561,-333.59803639,0.00035551,120]
[311869847,1705480537583,-565.06497342,0.00035551,120]
[311869848,1705480537608,-425.06853108,0.00035551,30]
[311869849,1705480537631,-1549847.19608048,0.00035551,120]
[311869850,1705480546207,-500.0,0.00027397,30]
[311869851,1705480546232,-500.0,0.00027397,30]
[311869852,1705480546256,-500.0,0.00027397,30]
[311869853,1705480546280,-500.0,0.00027397,30]
[311869854,1705480546303,-500.0,0.00027397,30]
[311869855,1705480546327,-523.98606285,0.00027397,30]
[311869856,1705480546457,-300.0,0.0003,31]
[311869857,1705480546494,-300.0,0.00031,32]
[311869858,1705480546523,-600.0,0.00032,33]
[311869859,1705480546555,-600.0,0.00033,34]
[311869860,1705480546578,-212.55349277,0.00033,33]
[311869861,1705480546603,-771.62046564,0.00033,30]
[311869862,1705480546632,-150.0,0.00033864,120]
[311869863,1705480546656,-150.0,0.00033932,120]
[311869864,1705480546680,-2500.0,0.00034,114]
[311869865,1705480546704,-600.0,0.00034,35]
[311869866,1705480546728,-500.0,0.00034,120]
[311869867,1705480546763,-371.50546211,0.000345,120]
[311869868,1705480546787,-150.0,0.00034643,120]
[311869869,1705480546809,-399.40479443,0.0003468,30]
[311869870,1705480546833,-150.0,0.00034843,120]
[311869871,1705480546859,-176.42157463,0.0003493,30]
[311869872,1705480546887,-600.0,0.00035,36]
[311869873,1705480546911,-1800.0,0.00035,30]
[311869874,1705480546934,-2991.83487349,0.00035,30]
[311869875,1705480546958,-2000.0,0.00035,30]
[311869876,1705480546981,-519.0,0.00035,30]
[311869877,1705480547006,-1039.0,0.00035,30]
[311869878,1705480547030,-500.0,0.00035,120]
[311869879,1705480547054,-1657.82474087,0.00035,30]
[311869880,1705480547077,-299.99999908,0.00035,36]
[311869881,1705480547103,-150.0,0.00035152,120]
[311869882,1705480547130,-155.62980233,0.000355,30]
[311869883,1705480547152,-2500.0,0.000355,30]
[311869884,1705480547188,-1050.0,0.00035616,32]
[311869885,1705480547211,-1233.19504067,0.00035616,37]
[311869886,1705480547241,-176.42157463,0.0003593,30]
[311869887,1705480547267,-2000.0,0.00036,120]
[311869888,1705480547291,-600.0,0.00036,37]
[311869889,1705480547314,-500.0,0.00036,120]
[311869890,1705480547337,-373.091308,0.00036,30]
[311869891,1705480547363,-150.0,0.00036349,120]
[311869892,1705480547387,-150.0,0.00036438,31]
[311869893,1705480547410,-150.0,0.00036438,41]
[311869894,1705480547433,-150.0,0.00036438,50]
[311869895,1705480547457,-150.0,0.00036438,60]
[311869896,1705480547479,-150.0,0.00036438,70]
[311869897,1705480547503,-150.0,0.00036438,80]
[311869898,1705480547525,-150.0,0.00036438,90]
[311869899,1705480547550,-150.0,0.00036467,120]
[311869900,1705480547574,-150.0,0.00036523,120]
[311869901,1705480547602,-2015.0,0.00037,30]
[311869902,1705480547629,-150.0,0.00037,30]
[311869903,1705480547652,-500.0,0.00037,120]
[311869904,1705480547677,-300.0,0.00037,38]
[311869905,1705480547704,-150.0,0.000372,30]
[311869906,1705480547727,-150.0,0.000374,30]
[311869907,1705480547751,-203.96521146,0.000376,30]
[311869908,1705480547774,-162.06719808,0.000378,30]
[311869909,1705480547797,-2500.0,0.000378,40]
[311869910,1705480547821,-150.5,0.0003797,120]
[311869911,1705480547844,-150.5,0.0003797,120]
[311869912,1705480547867,-246.0,0.0003797,120]
[311869913,1705480547890,-241.0,0.0003797,120]
[311869914,1705480547912,-278.0,0.0003797,120]
[311869915,1705480547934,-150.5,0.0003797,120]
[311869916,1705480547955,-246.0,0.0003797,120]
[311869917,1705480547977,-241.0,0.0003797,120]
[311869918,1705480548000,-278.0,0.0003797,120]
[311869919,1705480548022,-153.0,0.0003797,120]
[311869920,1705480548045,-391.0,0.0003797,120]
[311869921,1705480548067,-150.5,0.0003797,120]
[311869922,1705480548090,-391.0,0.0003797,120]
[311869923,1705480548113,-153.0,0.0003797,120]
[311869924,1705480548135,-150.5,0.0003797,120]
[311869925,1705480548159,-150.5,0.0003797,120]
[311869926,1705480548181,-150.5,0.0003797,120]
[311869927,1705480548585,-240.0,0.0003797,30]
[311869928,1705480548616,-150.5,0.0003797,120]
[311869929,1705480548639,-150.5,0.0003797,120]
[311869930,1705480548661,-240.0,0.0003797,30]
[311869931,1705480548684,-150.5,0.0003797,120]
[311869932,1705480548706,-184.59,0.0003797,120]
[311869933,1705480548729,-281.41,0.0003797,120]
[311869934,1705480548753,-195.06,0.0003797,120]
[311869935,1705480548777,-1574.0,0.0003797,120]
[311869936,1705480548800,-4626.0,0.0003797,120]
[311869937,1705480548827,-1574.0,0.0003797,120]
[311869938,1705480548850,-4626.0,0.0003797,120]
[311869939,1705480548873,-150.5,0.0003797,120]
[311869940,1705480548896,-150.5,0.0003798,120]
[311869941,1705480548920,-150.5,0.0003798,120]
[311869942,1705480548943,-246.0,0.0003798,120]
[311869943,1705480548965,-150.5,0.0003798,120]
[311869944,1705480548988,-241.0,0.0003798,120]
[311869945,1705480549011,-278.0,0.0003798,120]
[311869946,1705480549034,-150.5,0.0003798,120]
[311869947,1705480549057,-246.0,0.0003798,120]
[311869948,1705480549079,-241.0,0.0003798,120]
[311869949,1705480549105,-278.0,0.0003798,120]
[311869950,1705480549129,-246.0,0.0003798,120]
[311869951,1705480549152,-241.0,0.0003798,120]
[311869952,1705480549175,-278.0,0.0003798,120]
[311869953,1705480549198,-153.0,0.0003798,120]
[311869954,1705480549221,-391.0,0.0003798,120]
[311869955,1705480549243,-150.5,0.0003798,120]
[311869956,1705480549267,-153.0,0.0003798,120]
[311869957,1705480549290,-391.0,0.0003798,120]
[311869958,1705480549314,-150.5,0.0003798,120]
[311869959,1705480549337,-391.0,0.0003798,120]
[311869960,1705480549361,-153.0,0.0003798,120]
[311869961,1705480549387,-150.5,0.0003798,120]
[311869962,1705480549411,-150.5,0.0003798,120]
[311869963,1705480549434,-150.5,0.0003798,120]
[311869964,1705480549458,-235.6,0.0003798,120]
[311869965,1705480549486,-240.0,0.0003798,30]
[311869966,1705480549513,-150.5,0.0003798,120]
[311869967,1705480549538,-150.5,0.0003798,120]
[311869968,1705480549561,-240.0,0.0003798,30]
[311869969,1705480549586,-240.0,0.0003798,30]
[311869970,1705480549612,-245.65,0.0003798,30]
[311869971,1705480549637,-150.5,0.0003798,120]
[311869972,1705480549660,-150.5,0.0003798,120]
[311869973,1705480549683,-250.24,0.0003798,120]
[311869974,1705480549706,-154.67,0.0003798,120]
[311869975,1705480549729,-278.89,0.0003798,120]
[311869976,1705480549754,-241.87,0.0003798,120]
[311869977,1705480549778,-1574.0,0.0003798,120]
[311869978,1705480549801,-191.1,0.0003798,120]
[311869979,1705480549824,-394.26,0.0003798,120]
[311869980,1705480549848,-4626.0,0.0003798,120]
[311869981,1705480549871,-1574.0,0.0003798,120]
[311869982,1705480549893,-180.04,0.0003798,120]
[311869983,1705480549917,-150.51,0.0003798,120]
[311869984,1705480549939,-4626.0,0.0003798,120]
[311869985,1705480549962,-1574.0,0.0003798,120]
[311869986,1705480549985,-1579.12,0.0003798,120]
[311869987,1705480550010,-4626.0,0.0003798,120]
[311869988,1705480550035,-4629.55,0.0003798,120]
[311869989,1705480550059,-150.5,0.0003798,120]
[311869990,1705480550082,-150.5,0.0003799,120]
[311869991,1705480550106,-212.45,0.0003799,120]
[311869992,1705480550129,-150.5,0.0003799,120]
[311869993,1705480550152,-246.0,0.0003799,120]
[311869994,1705480550175,-150.5,0.0003799,120]
[311869995,1705480550203,-241.0,0.0003799,120]
[311869996,1705480550229,-278.0,0.0003799,120]
[311869997,1705480550261,-150.5,0.0003799,120]
[311869998,1705480550289,-246.0,0.0003799,120]
[311869999,1705480550315,-241.0,0.0003799,120]
[311870000,1705480550341,-278.0,0.0003799,120]
[311870001,1705480550365,-150.5,0.0003799,120]
[311870002,1705480550389,-246.0,0.0003799,120]
[311870003,1705480550413,-241.0,0.0003799,120]
[311870004,1705480550438,-278.0,0.0003799,120]
[311870005,1705480550463,-246.0,0.0003799,120]
[311870006,1705480550489,-241.0,0.0003799,120]
[311870007,1705480550515,-278.0,0.0003799,120]
[311870008,1705480550543,-153.0,0.0003799,120]
[311870009,1705480550570,-391.0,0.0003799,120]
[311870010,1705480550593,-150.5,0.0003799,120]
[311870011,1705480550621,-153.0,0.0003799,120]
[311870012,1705480550645,-391.0,0.0003799,120]
[311870013,1705480550669,-150.5,0.0003799,120]
[311870014,1705480550695,-391.0,0.0003799,120]
[311870015,1705480550718,-153.0,0.0003799,120]
[311870016,1705480550743,-391.0,0.0003799,120]
[311870017,1705480550770,-153.0,0.0003799,120]
[311870018,1705480550794,-150.5,0.0003799,120]
[311870019,1705480550818,-150.5,0.0003799,120]
[311870020,1705480550841,-150.5,0.0003799,120]
[311870021,1705480550867,-150.5,0.0003799,120]
[311870022,1705480550891,-240.0,0.0003799,30]
[311870023,1705480550916,-150.5,0.0003799,120]
[311870024,1705480550940,-150.5,0.0003799,120]
[311870025,1705480550964,-240.0,0.0003799,30]
[311870026,1705480550988,-166.49,0.0003799,120]
[311870027,1705480551015,-289.7,0.0003799,120]
[311870028,1705480551040,-240.0,0.0003799,30]
[311870029,1705480551296,-240.0,0.0003799,30]
[311870030,1705480551321,-150.5,0.0003799,120]
[311870031,1705480551346,-150.5,0.0003799,120]
[311870032,1705480551371,-252.77,0.0003799,120]
[311870033,1705480551395,-204.84,0.0003799,120]
[311870034,1705480551420,-1574.0,0.0003799,120]
[311870035,1705480551445,-4626.0,0.0003799,120]
[311870036,1705480551471,-1574.0,0.0003799,120]
[311870037,1705480551498,-150.5,0.0003799,120]
[311870038,1705480551526,-150.5,0.0003799,120]
[311870039,1705480551550,-4626.0,0.0003799,120]
[311870040,1705480551573,-1574.0,0.0003799,120]
[311870041,1705480551598,-1574.0,0.0003799,120]
[311870042,1705480551626,-4626.0,0.0003799,120]
[311870043,1705480551652,-4626.0,0.0003799,120]
[311870044,1705480551679,-150.5,0.0003799,120]
[311870045,1705480551703,-234.14,0.0003799,120]
[311870046,1705480551727,-3437.14637957,0.00038,30]
[311870047,1705480551755,-300.0,0.00038,39]
[311870048,1705480551782,-708.57454677,0.00038,30]
[311870049,1705480551808,-500.0,0.00038,120]
[311870050,1705480551831,-200.0,0.00038,30]
[311870051,1705480551863,-1753.30523125,0.00038356,30]
[311870052,1705480551892,-1805.11694048,0.000388,30]
[311870053,1705480551916,-2500.000001,0.000389,39]
[311870054,1705480551942,-150.0,0.00038991,120]
[311870055,1705480551970,-161.04431928,0.00039,40]
[311870056,1705480551996,-1774.0,0.00039,30]
[311870057,1705480552021,-300.0,0.00039,40]
[311870058,1705480552045,-350.0,0.00039,120]
[311870059,1705480552069,-282.1109604,0.0003922,30]
[311870060,1705480552092,-152.732408,0.00039234,31]
[311870061,1705480552118,-1000.0,0.000394,30]
[311870062,1705480552142,-1000.0,0.000395,30]
[311870063,1705480552166,-1000.0,0.000396,30]
[311870064,1705480552190,-1000.0,0.000397,31]
[311870065,1705480552213,-2658.13099594,0.000398,43]
[311870066,1705480552236,-1000.0,0.000398,31]
[311870067,1705480552261,-1000.0,0.00039824,31]
[311870068,1705480552284,-2693.0,0.00039864,60]
[311870069,1705480552307,-1067.69042261,0.000399,120]
[311870070,1705480552331,-1000.0,0.000399,31]
[311870071,1705480552354,-22340.0,0.0003999,60]
[311870072,1705480552380,-331.46808359,0.0004,30]
[311870073,1705480552403,-2774.93418116,0.0004,30]
[311870074,1705480552428,-347.53189057,0.0004,30]
[311870075,1705480552451,-158.53930518,0.0004,30]
[311870076,1705480552473,-1000000.0,0.0004,30]
[311870077,1705480552496,-766.8680499,0.0004,120]
[311870078,1705480552518,-763.49852338,0.0004,30]
[311870079,1705480552540,-2000.0,0.0004,120]
[311870080,1705480552563,-350.0,0.0004,120]
[311870081,1705480552585,-1000.0,0.0004,30]
[311870082,1705480552609,-1000.0,0.0004,30]
[311870083,1705480552636,-1000.0,0.0004,30]
[311870084,1705480552659,-1000.0,0.0004,30]
[311870085,1705480552682,-1000.0,0.0004,30]
[311870086,1705480552705,-1168.36693971,0.0004,120]
[311870087,1705480552727,-163.59841905,0.0004,30]
[311870088,1705480552751,-244.55707431,0.0004,30]
[311870089,1705480552773,-280.96394003,0.0004,30]
[311870090,1705480552796,-1236.82417459,0.0004,30]
[311870091,1705480552819,-1098.27957906,0.0004,120]
[311870092,1705480552842,-1015.83400661,0.0004,30]
[311870093,1705480552865,-500.0,0.0004,30]